Workbook

Sheet Conversion
B2: Convertion Table © Rocketwaveuk
V3: =Deci/100 -> 0.6666666667
C4: To Avoid Over Writing Formula's Keep Locked using smile buttons | E4: Unlocked | V4: 0
C5: Amount | E5: Convert to | V5: =Thou*1000 -> 0
C6: 16 | E6: Deg F > Deg C | K6: Lookup | L6: Value | M6: Con_Rate | N6: New Scale | V6: 100
K7: 1 | L7: Select Here | M7: 0 | N7: Converted To | V7: 40
K8: 2 | L8: <<< Length >>> | V8: 6
C9: =VLOOKUP(E6,L6:N79,2,0) -> -8.888888889 | E9: =VLOOKUP(E6,L6:N79,3,0) -> Centigrade | K9: 3 | L9: cm > Inches | M9: =Val_Total*0.3937 -> 6.2992 | N9: Inches | V9: 66.66666667
K10: 4 | L10: Metres > Feet | M10: =Val_Total*3.2808 -> 52.4928 | N10: Feet | V10: =C6 -> 16
K11: 5 | L11: Metres > Yards | M11: =Val_Total/0.9144 -> 17.49781277 | N11: Yards | V11: =Conv_Answer -> -8.888888889
C12: 1 | K12: 6 | L12: km > miles | M12: =Val_Total/1.609 -> 9.944064636 | N12: Miles | V12: =QUOTIENT(Ans_Total,1000)*1000 -> 0
K13: 7 | L13: Inches > cm | M13: =Val_Total*2.54 -> 40.64 | N13: Centimetres | V13: =QUOTIENT(Ans_Total-Ans_Thou,100)*100 -> 0
C14: Below You Can Set Exchange Rates To the £ | K14: 8 | L14: Inches > Feet | M14: =Val_Total/12 -> 1.333333333 | N14: Feet | V14: =QUOTIENT(Ans_Total-Ans_Thou-Ans_Hund,10)*10 -> 0
C15: Dollars | D15: Pesos | E15: Euros | F15: Yen | K15: 9 | L15: Feet > Yards | M15: =Val_Total*0.3333 -> 5.3328 | N15: Yards | V15: =QUOTIENT(Ans_Total-Ans_Thou-Ans_Hund-Ans_Tens,1) -> -8
C16: 1.33 | D16: 61.99 | E16: 1.19 | F16: 138.23 | K16: 10 | L16: Feet > Metre | M16: =Val_Total*0.3048 -> 4.8768 | N16: Metres | V16: =Ans_Total-Ans_Thou-Ans_Hund-Ans_Tens-Ans_Units -> -0.8888888889
C17: Set The Value For V.A.T % | K17: 11 | L17: Yards > Metres | M17: =Val_Total*0.9144 -> 14.6304 | N17: Metres | V17: =Ans_Thou/1000 -> 0
D18: 0.2 | K18: 12 | L18: Yards > Feet | M18: =Val_Total*3 -> 48 | N18: Feet
K19: 13 | L19: Yards > Miles | M19: =Val_Total/1760 -> 0.009090909091 | N19: Miles
K20: 14 | L20: Chains > Yards | M20: =Val_Total*22 -> 352 | N20: Yards | V20: 0
K21: 15 | L21: Furlong > Miles | M21: =Val_Total/8 -> 2 | N21: Miles | V21: 100
K22: 16 | L22: Miles > Km | M22: =Val_Total*1.609 -> 25.744 | N22: Kilometres | V22: 40
K23: 17 | L23: <<< WEIGHTS >>> | V23: 6
K24: 18 | L24: Grams > Ounces | M24: =Val_Total*0.0353 -> 0.5648 | N24: Ounces | V24: 0.6666666667
K25: 19 | L25: Kilos > lbs | M25: =Val_Total*2.2046 -> 35.2736 | N25: Pounds | V25: =Swap_Deci*100 -> 66.66666667
K26: 20 | L26: Kilos > Stones | M26: =Val_Total/6.3503 -> 2.519566005 | N26: Stones
K27: 21 | L27: Ounces > Grams | M27: =Val_Total*28.35 -> 453.6 | N27: Grams
K28: 22 | L28: Ounces > Lbs | M28: =Val_Total/16 -> 1 | N28: Pounds
K29: 23 | L29: Ibs > Ounces | M29: =Val_Total*16 -> 256 | N29: Ounces
K30: 24 | L30: lbs > Kilos | M30: =Val_Total*0.4536 -> 7.2576 | N30: Kilos
K31: 25 | L31: lbs > Stones | M31: =Val_Total/14 -> 1.142857143 | N31: Stones
K32: 26 | L32: Stones > Kilos | M32: =Val_Total*6.3503 -> 101.6048 | N32: Kilos
K33: 27 | L33: Stone > Cwt | M33: =Val_Total/8 -> 2 | N33: Cwt
K34: 28 | L34: Tons > Stones | M34: =(Val_Total*10)*8 -> 1280 | N34: Stones
K35: 29 | L35: <<< FLUIDS >>>
K36: 30 | L36: m`ltrs > Fluid oz | M36: =((Val_Total/1000)/0.568)*20 -> 0.5633802817 | N36: Fluid Oz
K37: 31 | L37: m'Litres > Pints | M37: =Val_Total/568 -> 0.02816901408 | N37: Pints
K38: 32 | L38: Litres > Pints | M38: =Val_Total/0.568 -> 28.16901408 | N38: Pints
K39: 33 | L39: Litres > Gallons | M39: =Val_Total/4.546 -> 3.519577651 | N39: Gallons
K40: 34 | L40: Fluid oz > m`Ltrs | M40: =(Val_Total/20)*568 -> 454.4 | N40: m`Litres
K41: 35 | L41: Pints > m`Litres | M41: =Val_Total*568 -> 9088 | N41: m`Litres
K42: 36 | L42: Pints > Litres | M42: =Val_Total*0.568 -> 9.088 | N42: Litres
K43: 37 | L43: Pints > Fluid Oz | M43: =Val_Total*20 -> 320 | N43: Fluid Ozs
K44: 38 | L44: Pints > Gallons | M44: =Val_Total/8 -> 2 | N44: Gallons
K45: 39 | L45: Gallons > Litres | M45: =Val_Total*4.546 -> 72.736 | N45: Litres
K46: 40 | L46: Choose | M46: 0 | N46: Select Above
K47: 41 | L47: <<< TEMPERATURE >>>
K48: 42 | L48: Deg F > Deg C | M48: =(Val_Total-32)/1.8 -> -8.888888889 | N48: Centigrade
K49: 43 | L49: Deg C > Deg F | M49: =(Val_Total*1.8)+32 -> 60.8 | N49: Fahrenheit
K50: 44 | L50: <<< POWER >>>
K51: 45 | L51: Peek > Rms | M51: =Val_Total*0.707 -> 11.312 | N51: Root Mean Sq
K52: 46 | L52: Rms > Peek | M52: =(Val_Total/70.7)*100 -> 22.63083451 | N52: Peek Value
K53: 47 | L53: <<< CURRENCY >>>
K54: 48 | L54: Include V.A.T | M54: =(Val_Total*Vat_Value)+Val_Total -> 19.2 | N54: Inc V.A.T
K55: 49 | L55: Exclude V.A.T | M55: =(Val_Total/((Vat_Value*100)+100))*100 -> 13.33333333 | N55: Exc V.A.T
K56: 50 | L56: Pound > Euros | M56: =Val_Total*Euro_Value -> 19.04 | N56: Euros
K57: 51 | L57: Pound > Dollar | M57: =Val_Total*Dollar_Value -> 21.28 | N57: Dollars
K58: 52 | L58: Pound > Yen | M58: =Val_Total*Yen_Value -> 2211.68 | N58: Yen
K59: 53 | L59: Pounds > Pesos | M59: =Val_Total*Peso_Value -> 991.84 | N59: Pesos
K60: 54 | L60: Dollar > Yen | M60: =Val_Total*Pound_Yen/Pound_Dollar -> 1662.917293 | N60: Yen
K61: 55 | L61: Dollar > Pound | M61: =Val_Total/Dollar_Value -> 12.03007519 | N61: Pounds
K62: 56 | L62: Euros > Pound | M62: =Val_Total/Euro_Value -> 13.44537815 | N62: Pounds
K63: 57 | L63: Pesos > Pound | M63: =Val_Total/Peso_Value -> 0.2581061462 | N63: Pounds
K64: 58 | L64: Yen > Pound | M64: =Val_Total/Yen_Value -> 0.1157491138 | N64: Pounds
K65: 59 | L65: Yen > Dollar | M65: =Val_Total*Pound_Dollar/Pound_Yen -> 0.1539463213 | N65: Dollars
K66: 60 | L66: <<< Formula >>>
K67: 61 | L67: Squared Num | M67: =Val_Total^2 -> 256 | N67: Squared
K68: 62 | L68: Cubed Num | M68: =Val_Total^3 -> 4096 | N68: Cubed
K69: 63 | L69: Square Root Num | M69: =SQRT(Val_Total) -> 4 | N69: Square Root
K70: 64 | L70: Cube Root Num | M70: =Val_Total^(1/3) -> 2.5198421 | N70: Cube Root
K71: 65 | L71: Radius/Circumference | M71: =2*PI()*Val_Total -> 100.5309649 | N71: Circumference
K72: 66 | L72: Deg/Radians | M72: =Val_Total/57.2957 -> 0.2792530679 | N72: Radians
K73: 67 | L73: Radians/Deg | M73: =Val_Total*57.2957 -> 916.7312 | N73: Degrees
K74: 68 | L74: PI * Number | M74: =Val_Total*PI() -> 50.26548246 | N74: Number Result
K75: 69 | L75: 1/X | M75: =1/Val_Total -> 0.0625 | N75: Decimal
K76: 70 | L76: Peek/RMS | M76: =Val_Total*0.707 -> 11.312 | N76: Rms Value
